Workbook

Sheet przedsiewziecia ver 1b
B2: Stopień zaawansowania realizacji programów wieloletnich na 31.12.2012 rok
A3: Lp | C3: jednostka odpowiedzialna | D3: okres realizacji (w wierszu program/umowa) | F3: Klas. Budżet. | H3: łączne nakłady finansowe | I3: wydatki poniesione w latach poprzednich | J3: PLAN I WYKONANIE WYDATKÓW ZA 2012 ROK | AR3: Stopień zaawansowania realizacji programów wieloletnich (%) kol.(12+10)/9
D4: Od | E4: Do | F4: dział | G4: Rozdz. | J4: Plan na 2012 | K4: Wykonanie za 2012 rok | L4: 2014 | M4: 2015 | N4: 2016 | O4: 2017 | P4: 2018 | Q4: 2019 | R4: 2020 | S4: 2021 | T4: 2022 | U4: 2023 | V4: 2024 | W4: 2025 | X4: 2026 | Y4: 2027 | Z4: 2028 | AA4: 2029 | AB4: 2030 | AC4: 2031 | AD4: 2032 | AE4: 2033 | AF4: 2034 | AG4: 2035 | AH4: 2036 | AI4: 2037 | AJ4: 2038 | AK4: 2039 | AL4: 2040 | AM4: 2041 | AN4: 2042 | AO4: 2043 | AP4: 2044 | AQ4: 2045
A5: 1 | B5: 2 | C5: 3 | D5: 4 | E5: 5 | F5: 6 | G5: 7 | H5: 9 | I5: 10 | J5: 11 | K5: 12 | L5: 13 | M5: 14 | AR5: 13
B6: Przedsięwzięcia ogółem | H6: =H7+H8 -> 23117113.36 | I6: 7278211.35 | J6: 4800097.27 | K6: 4065897.28 | L6: 1187687.16 | M6: 479365.32 | N6: 315368.5 | O6: 315368.5 | P6: 315368.5 | Q6: 315368.5 | R6: 340332.5 | S6: 262187.5 | T6: 262187.5 | U6: 62187.5 | V6: 62187.5 | W6: 62187.5 | X6: 62187.5 | Y6: =+Y7+Y8 -> 62187.5 | Z6: =Z7+Z8 -> 75187.5 | AA6: 0 | AB6: 0 | AC6: 0 | AD6: 0 | AE6: 0 | AF6: 0 | AG6: 0 | AH6: 0 | AI6: 0 | AJ6: 0 | AK6: 0 | AL6: 0 | AM6: 0 | AN6: 0 | AO6: 0 | AP6: 0 | AQ6: 0 | AR6: =(I6+K6)/H6 -> 0.4907234071
B7: - wydatki bieżące | H7: =H13+H43+H58+H65 -> 6839580.3 | I7: =I13+I43+I58+I65 -> 7626 | J7: =+J13+J43+J58+J65 -> 1086744.76 | K7: =K13+K43+K58+K65 -> 852752.32 | L7: 564106.86 | M7: 479365.32 | N7: 315368.5 | O7: 315368.5 | P7: 315368.5 | Q7: 315368.5 | R7: 340332.5 | S7: 262187.5 | T7: 262187.5 | U7: 62187.5 | V7: 62187.5 | W7: 62187.5 | X7: 62187.5 | Y7: 62187.5 | Z7: 75187.5 | AA7: =AA13+AA42+AA58+AA65 -> 0 | AB7: =AB13+AB43+AB58+AB65 -> 0 | AC7: 0 | AD7: 0 | AE7: 0 | AF7: 0 | AG7: 0 | AH7: 0 | AI7: 0 | AJ7: 0 | AK7: 0 | AL7: 0 | AM7: 0 | AN7: 0 | AO7: 0 | AP7: 0 | AQ7: 0 | AR7: 0.1257940228
B8: - wydatki majątkowe | H8: =H20+H47 -> 16277533.06 | I8: 7270585.35 | J8: 3713352.51 | K8: 3213144.96 | L8: 623580.3 | M8: 0 | N8: 0 | AQ8: 0 | AR8: 0.6440613741
B9: 1) programy, projekty lub zadania (razem) | H9: =H10+H11 -> 18459113.36 | I9: 7278211.35 | J9: 4307097.27 | K9: 3676207.06 | L9: 872374.66 | M9: 164052.82 | N9: =N10+N11 -> 56 | O9: =O10+O11 -> 56 | P9: =P10+P11 -> 56 | Q9: =Q10+Q11 -> 56 | R9: =R10+R11 -> 20 | AQ9: 0 | AR9: 0.5934422849
B10: - wydatki bieżące | H10: =H13+H43 -> 2181580.3 | I10: 7626 | J10: 593744.76 | K10: 463062.1 | L10: 248794.36 | M10: 164052.82 | N10: 56 | O10: =O13+O43 -> 56 | P10: =P13+P43 -> 56 | Q10: =Q13+Q43 -> 56 | R10: =R13+R43 -> 20 | AQ10: 0 | AR10: 0.2157555695
B11: - wydatki majątkowe | H11: =H20+H47 -> 16277533.06 | I11: 7270585.35 | J11: 3713352.51 | K11: 3213144.96 | L11: 623580.3 | M11: 0 | N11: 0 | AQ11: 0 | AR11: 0.6440613741
B12: a) programy, projekty lub zadania związane z programami realizowanymi z udziałem środków, o których mowa w art. 5 ust. 1 pkt 2 i 3, (razem) | H12: =H13+H20 -> 13437509.36 | I12: 7278211.35 | J12: 3808697.27 | K12: 3199898.51 | L12: 478174.66 | M12: 164052.82 | N12: =N13+N20 -> 56 | O12: =O13+O20 -> 56 | P12: =P13+P20 -> 56 | Q12: =Q13+Q20 -> 56 | R12: =+R13+R20 -> 20 | AQ12: 0 | AR12: 0.779765772
B13: - wydatki bieżące | H13: =SUM(H14:H19) -> 1851976.3 | I13: =SUM(I14:I19) -> 7626 | J13: =SUM(J14:J19) -> 501344.76 | K13: =SUM(K14:K19) -> 387753.55 | L13: =SUM(L14:L19) -> 205594.36 | M13: =SUM(M14:M19) -> 164052.82 | N13: 56 | O13: 56 | P13: 56 | Q13: 56 | R13: 20 | AR13: 0.21349061
B14: Szkoła marzeń - indywidualizacja nauczania w Szkole Podstawowej Nr 1 i Nr 2 w Brzezinach | C14: Gmina Miasto Brzeziny | D14: 2012 | E14: 2013 | F14: 801 | G14: 80101 | H14: 153200 | I14: 0 | J14: 96500 | K14: 89895.99 | AQ14: 0 | AR14: 0.5867884465
B16: Razem możemy więcej | C16: Miejski Ośrodek Pomocy Społecznej | D16: 2012 | E16: 2013 | F16: 802 | G16: 80295 | H16: 999920 | I16: 0 | J16: 307700 | K16: 205513.37 | AR16: =(I16+K16)/H16 -> 0.2055298124
B17: Przygotowanie terenów inwestycyjnych dla lokalizacji Stefy Inwestycyjnej w Brzezinach | C17: Gmina Miasto Brzeziny | D17: 2012 | E17: 2014 | F17: 710 | G17: 71095 | H17: 38745 | I17: 0 | J17: 12300 | K17: 12300 | L17: 16605 | AR17: =(I17+K17)/H17 -> 0.3174603175
B18: Okno na świat - przeciwdziałanie wykluczeniu cyfrowemu w mieście Brzeziny | C18: Gmina Miasto Brzeziny | D18: 2012 | E18: 2020 | F18: 853 | G18: 85395 | H18: 660111.3 | I18: 7626 | J18: 84844.76 | K18: 80044.19 | L18: 188989.36 | M18: 164052.82 | N18: 56 | O18: 56 | P18: 56 | Q18: 56 | R18: 20 | AR18: =(I18+K18)/H18 -> 0.1328112244
H19: =SUM(I19:AQ19) -> 0 | AQ19: 0
B20: - wydatki majątkowe | H20: =SUM(H21:H24) -> 11585533.06 | I20: 7270585.35 | J20: 3307352.51 | K20: 2812144.96 | L20: 272580.3 | M20: 0 | N20: =N21+N24 -> 0 | AR20: =(I20+K20)/H20 -> 0.8702862663
B21: Budowa i przebudowa ulic w osiedlu „Szydłowiec” w Brzezinach wraz z budową sieci kanalizacji deszczowej | C21: Gmina Miasto Brzeziny | D21: 2008 | E21: 2013 | F21: 600 | G21: 60016 | H21: 10718764.36 | I21: 7270585.35 | J21: 2925818.81 | K21: 2430611.26 | AR21: =+(I21+K21)/H21 -> 0.9050666928
B22: Przygotowanie terenów inwestycyjnych dla lokalizacji Stefy Inwestycyjnej w Brzezinach | C22: Gmina Miasto Brzeziny | D22: 2012 | E22: 2014 | F22: 710 | G22: 71095 | H22: 485235 | I22: 0 | J22: 0 | K22: 0 | L22: 272580.3 | AR22: =(I22+K22)/H22 -> 0
B23: Okno na świat - przeciwdziałanie wykluczeniu cyfrowemu w mieście Brzeziny | C23: Gmina Miasto Brzeziny | D23: 2012 | E23: 2020 | F23: 853 | G23: 85395 | H23: 381533.7 | I23: 0 | J23: 381533.7 | K23: 381533.7 | L23: 0 | M23: 0 | AQ23: 0 | AR23: =(I23+K23)/H23 -> 1
H24: =SUM(I24:AQ24) -> 0 | AQ24: 0
B25: b) programy, projekty lub zadania związane z umowami partnerstwa publiczno-prywatnego; (razem)
B26: - wydatki bieżące
B27: program 1 ogółem | F27: x
B28: - wyszczególnienie wydatków na program wg klasyfikacji budżetowej
B29: - wyszczególnienie wydatków na program wg klasyfikacji budżetowej
B30: program 2 ogółem | F30: x
B31: - wyszczególnienie wydatków na program wg klasyfikacji budżetowej
B32: …..
B34: - wydatki majątkowe
B35: program 1 ogółem | F35: x
B36: - wyszczególnienie wydatków na program wg klasyfikacji budżetowej
B37: - wyszczególnienie wydatków na program wg klasyfikacji budżetowej
B38: program 2 ogółem | F38: x
B39: - wyszczególnienie wydatków na program wg klasyfikacji budżetowej
B40: …..
B42: c) programy, projekty lub zadania pozostałe (inne niż wymienione w lit.a i b) (razem) | H42: =H43+H47 -> 5021604 | I42: 0 | J42: 498400 | K42: 476308.55 | L42: 394200 | M42: 0 | N42: 0 | AQ42: 0 | AR42: =(I42+K42)/H42 -> 0.09485187402
B43: - wydatki bieżące | H43: =H44+H45+H46 -> 329604 | I43: =I44+I45+I46 -> 0 | J43: =J44+J45+J46 -> 92400 | K43: =K44+K45+K46 -> 75308.55 | L43: =L44+L45+L46 -> 43200 | M43: =M44+M46 -> 0 | N43: =N44+N46 -> 0 | AR43: =(I43+K43)/H43 -> 0.2284819056
AR44: =SUM(J44:AQ44) -> 0
B45: Rozwój miasta Brzeziny poprzez wdrożenie e-kształcenia w Gimnazjum w Brzezinach | C45: Gmina Miasto Brzeziny | D45: 2012 | E45: 2013 | F45: 801 | G45: 80195 | H45: 126604 | I45: 0 | J45: 10000 | K45: 9963 | AR45: =(I45+K45)/H45 -> 0.07869419608
B46: Przedszkole oknem na świat | C46: Gmina Miasto Brzeziny | D46: 2012 | E46: 2014 | F46: 801 | G46: 80104 | H46: 203000 | I46: 0 | J46: 82400 | K46: 65345.55 | L46: 43200 | AR46: =(I46+K46)/H46 -> 0.3218992611
B47: - wydatki majątkowe | H47: =+SUM(H48:H56) -> 4692000 | I47: =I48+I49+I50+I51+I53+I54+I55+I56 -> 0 | J47: =SUM(J48:J56) -> 406000 | K47: =SUM(K48:K56) -> 401000 | L47: =SUM(L48:L56) -> 351000 | M47: =SUM(M51:M56) -> 0 | N47: =SUM(N51:N56) -> 0 | AR47: =(I47+K47)/H47 -> 0.08546462063
AR48: =SUM(J48:AQ48) -> 0
B49: Zakup nieruchomości położonej w Brzezinach przy ul. Sienkiewicza 10/12 | C49: Gmina Miasto Brzeziny | D49: 2012 | E49: 2014 | F49: 700 | G49: 70005 | H49: 2337000 | I49: 0 | J49: 351000 | K49: 351000 | L49: 351000 | AR49: =(I49+K49)/H49 -> 0.1501925546
B50: Zwiększenie bezpieczeństwa i udrożnienie komunikacyjne południowo-zachodniej sieci dróg miasta Brzeziny poprzez przebudowę ciągu dróg w ulicach: Fredry, Żeromskiego, Andersa, Św. Anny, Sportowa | C50: Gmina Miasto Brzeziny | D50: 2012 | E50: 2013 | F50: 600 | G50: 60016 | H50: 2355000 | I50: 0 | J50: 55000 | K50: 50000 | AR50: =(I50+K50)/H50 -> 0.02123142251
AQ51: 0
B57: 2) umowy, których realizacja w roku budżetowym i w latach następnych jest niezbędna dla zapewnienia ciągłości działania jednostki i których płatności przypadają w okresie dłuższym niż rok; (razem) | H57: =H58 -> 3200000 | I57: 0 | J57: 493000 | K57: 389690.22 | L57: 200000 | M57: 200000 | N57: =N58 -> 200000 | O57: 200000 | P57: 200000 | Q57: 200000 | R57: 200000 | S57: 200000 | T57: 200000 | U57: 0 | V57: =-V58 -> 0 | W57: =W58 -> 0 | X57: =X58 -> 0 | Y57: =Y58 -> 0 | Z57: =Z58 -> 0 | AQ57: 0 | AR57: =(I57+K57)/H57 -> 0.1217781937
B58: - wydatki bieżące | H58: =SUM(H59:H63) -> 3200000 | I58: =I59+I60+I61+I62+I63 -> 0 | J58: =SUM(J59:J63) -> 493000 | K58: =SUM(K59:K63) -> 389690.22 | L58: =L59+L60+L61+L62+L63 -> 200000 | M58: =SUM(M59:M63) -> 200000 | N58: 200000 | O58: 200000 | P58: 200000 | Q58: 200000 | R58: 200000 | S58: 200000 | T58: 200000 | U58: 0 | V58: 0 | W58: 0 | X58: 0 | Y58: 0 | Z58: 0 | AR58: 0.1217781937
B59: Zmiana miejscowego planu zagospodarowania przestrzennego | C59: Gmina Miasto Brzeziny | D59: 2012 | E59: 2013 | F59: 710 | G59: 71004 | H59: 61000 | I59: 0 | J59: 1000 | K59: 645.75 | AR59: 0.01058606557
B60: Realizacja porozumienia w sprawie międzygminnej komunikacji autobusowej | C60: Gmina Miasto Brzeziny | D60: 2012 | E60: 2022 | F60: 600 | G60: 60004 | H60: 2180000 | I60: 0 | J60: 180000 | K60: 138542.09 | L60: 200000 | M60: 200000 | N60: 200000 | O60: 200000 | P60: 200000 | Q60: 200000 | R60: 200000 | S60: 200000 | T60: 200000 | AR60: 0.06355141743
B61: Zimowe utrzymanie dróg | C61: Gmina Miasto Brzeziny | D61: 2012 | E61: 2013 | F61: 600 | G61: 60016 | H61: 450000 | I61: 0 | J61: 60000 | K61: 10568.39 | L61: 0 | M61: 0 | AQ61: 0 | AR61: 0.02348531111
B62: Hotelowanie i odłapywanie bezdomnych zwierząt | C62: Gmina Miasto Brzeziny | D62: 2012 | E62: 2013 | F62: 900 | G62: 90003 | H62: 400000 | I62: 0 | J62: 200000 | K62: 191436.89 | M62: 0 | AQ62: 0 | AR62: 0.478592225
B63: Umowa o zarządzanie mieszkaniowym zasobem gminy | C63: Gmina Miasto Brzeziny | D63: 2012 | E63: 2013 | F63: 700 | G63: 70004 | H63: 109000 | I63: 0 | J63: 52000 | K63: 48497.1 | M63: 0 | AR63: 0.4449275229
B64: 3) gwarancje i poręczenia udzielane przez jednostki samorządu terytorialnego (razem) | H64: =H65 -> 1458000 | I64: 0 | J64: 0 | K64: 0 | L64: 115312.5 | M64: 115312.5 | N64: 115312.5 | O64: 115312.5 | P64: 115312.5 | Q64: 115312.5 | R64: 140312.5 | S64: 62187.5 | T64: 62187.5 | U64: 62187.5 | V64: 62187.5 | W64: 62187.5 | X64: 62187.5 | Y64: 62187.5 | Z64: 75187.5 | AA64: 0 | AB64: 0 | AC64: 0 | AD64: 0 | AE64: 0 | AF64: 0 | AG64: 0 | AH64: 0 | AI64: 0 | AJ64: 0 | AK64: =AK65 -> 0 | AL64: 0 | AM64: 0 | AN64: 0 | AO64: 0 | AP64: 0 | AQ64: 0 | AR64: 0
B65: - wydatki bieżące | H65: =SUM(H66:H67) -> 1458000 | I65: =I66+I67 -> 0 | J65: =J66+J67 -> 0 | K65: =K66+K67 -> 0 | L65: =L66+L67 -> 115312.5 | M65: =+M66+M67 -> 115312.5 | N65: =N66+N67 -> 115312.5 | O65: 115312.5 | P65: 115312.5 | Q65: 115312.5 | R65: 140312.5 | S65: 62187.5 | T65: 62187.5 | U65: 62187.5 | V65: 62187.5 | W65: 62187.5 | X65: 62187.5 | Y65: 62187.5 | Z65: 75187.5 | AA65: =-AA66+AA67 -> 0 | AB65: =AB66+AB67 -> 0 | AC65: =AC66+AC67 -> 0 | AD65: =AD66+AD67 -> 0 | AE65: =+AE66+AE67 -> 0 | AF65: =AF66+AF67 -> 0 | AG65: 0 | AH65: 0 | AI65: 0 | AJ65: 0 | AK65: 0 | AL65: 0 | AM65: 0 | AN65: 0 | AO65: 0 | AP65: 0 | AQ65: 0 | AR65: 0
B66: Towarzystwo Budownictwa Społecznego Sp. z o.o. w Brzezinach | C66: Gmina Miasto Brzeziny | D66: 2003 | E66: 2020 | F66: 757 | G66: 75704 | H66: 450000 | I66: 0 | J66: 0 | K66: 0 | L66: 53125 | M66: 53125 | N66: 53125 | O66: 53125 | P66: 53125 | Q66: 53125 | R66: 78125 | AQ66: 0 | AR66: 0
B67: Towarzystwo Budownictwa Społecznego Sp. z o.o. w Brzezinach | C67: Gmina Miasto Brzeziny | D67: 2010 | E67: 2028 | F67: 757 | G67: 75704 | H67: 1008000 | I67: 0 | J67: 0 | K67: 0 | L67: 62187.5 | M67: 62187.5 | N67: 62187.5 | O67: 62187.5 | P67: 62187.5 | Q67: 62187.5 | R67: 62187.5 | S67: 62187.5 | T67: 62187.5 | U67: 62187.5 | V67: 62187.5 | W67: 62187.5 | X67: 62187.5 | Y67: 62187.5 | Z67: 75187.5 | AA67: 0 | AB67: 0 | AC67: 0 | AD67: 0 | AE67: 0 | AF67: 0 | AG67: 0 | AH67: 0 | AI67: 0 | AJ67: 0 | AK67: 0 | AL67: 0 | AM67: 0 | AN67: 0 | AO67: 0 | AP67: 0 | AQ67: 0 | AR67: 0

Sheet Arkusz1
